fUSD/lending_fUSD_20250415
["ID","MTS","AMOUNT","RATE_DAILY","PERIOD"]
[358105012,1744721439916,-237.0,0.00017999,2]
[358105013,1744721439927,-500.0,0.00017999,2]
[358105014,1744721439936,-500.0,0.00017999,2]
[358105015,1744721439946,-500.0,0.00017999,2]
[358105016,1744721439955,-1404.0,0.00017999,2]
[358105017,1744721439964,-500.0,0.00017999,2]
[358105018,1744721439974,-507.2,0.00017999,2]
[358105019,1744721439983,-626.18646801,0.00017999,2]
[358105020,1744721439992,-500.0,0.00017999,2]
[358105021,1744721440002,-500.0,0.00017999,2]
[358105022,1744721440011,-500.0,0.00017999,2]
[358105023,1744721440021,-1246.0,0.00018,2]
[358105024,1744721440030,-152.0,0.00018,2]
[358105025,1744721440042,-698.0,0.00018,2]
[358105026,1744721440050,-69689.01459517,0.00018,2]
[358105027,1744721440064,-223894.60414328,0.00018,2]
[358105028,1744721440075,-2372.47658803,0.00018,2]
[358105029,1744721440087,-3860.3565,0.00018,2]
[358105030,1744721440098,-7434.8593271,0.00018,2]
[358105031,1744721440125,-837.3995428,0.00018,2]
[358105032,1744721440523,-411.36404276,0.00018,2]
[358105035,1744721443894,-150.0,0.00017999,2]
[358105036,1744721443905,-332.56,0.00018,2]
[358105037,1744721443917,-510.1169997,0.00018,2]
[358105038,1744721443958,-32587.06109324,0.00018,2]
[358105039,1744721444019,-1203.2499875,0.00018,2]
[358105040,1744721444134,-1710.19466749,0.00018,2]
[358105041,1744721444146,-2482.68600992,0.00018,2]
[358105092,1744721446491,-500.0,0.00017999,2]
[358105093,1744721446501,-57533.93470539,0.00018,2]
[358105094,1744721446512,-19556.30285134,0.00018,2]
[358105095,1744721446524,-5102.20894791,0.00018,2]
[358105096,1744721446535,-1075.8442136,0.00018,2]
[358105097,1744721446547,-3570.5339792,0.00018,2]
[358105098,1744721446568,-8425.0,0.00018,2]
[358105100,1744721465907,200.0,0.00017486,2]
[358105102,1744721473492,444.16,4.16e-05,30]
[358105109,1744721558208,184.09,0.00016712,2]
[358105111,1744721579948,259.61,0.00017474,2]
[358105112,1744721580784,259.61,0.00026211,120]
[358105114,1744721594318,2751.0,0.00017429,2]
[358105116,1744721611630,768.9,0.00017429,2]
[358105118,1744721633386,200.0,0.00017389,2]
[358105119,1744721670122,1000.0,0.00017433,2]
[358105121,1744721705898,913.48,0.00017,2]
[358105122,1744721706630,2346.90541548,0.00027,30]
[358105125,1744721767309,275.36,0.000269,31]
[358105126,1744721767366,275.36,0.000269,31]
[358105127,1744721767433,275.36,0.000269,31]
[358105128,1744721767486,275.36,0.000269,31]
[358105129,1744721767564,275.36,0.000269,31]
[358105130,1744721767619,275.36,0.000269,31]
[358105131,1744721767706,275.36,0.000269,31]
[358105132,1744721767789,275.36,0.000269,31]
[358105133,1744721767851,275.36,0.000269,31]
[358105134,1744721767903,206.60858273,0.00027,120]
[358105135,1744721768237,275.36,0.000269,31]
[358105136,1744721768299,275.36,0.000269,31]
[358105137,1744721768354,275.36,0.000269,31]
[358105138,1744721768406,275.36,0.000269,31]
[358105139,1744721768458,275.36,0.000269,31]
[358105140,1744721768512,275.36,0.000269,31]
[358105141,1744721768567,275.36,0.000269,31]
[358105142,1744721791716,2548.8,0.00017389,2]
[358105143,1744721809516,577.4,0.00017345,2]
[358105144,1744721810693,1133.49,0.00017345,2]
[358105145,1744721818756,2315.81,0.00017389,2]
[358105146,1744721823014,241.82817697,0.00027,120]
[358105147,1744721868044,1027.2,0.00017486,2]
[358105148,1744721868252,1027.2,0.00017491,2]
[358105149,1744721868492,1027.2,0.00017495,2]
[358105150,1744721868726,1027.2,0.000175,2]
[358105151,1744721899682,947.07724585,0.00017414,2]
[358105152,1744721900800,1142.363655,0.00017417,2]
[358105153,1744722044088,150.0,0.00017486,2]
[358105154,1744722075068,162.81,0.00013423,2]
[358105155,1744722075266,162.81,0.00015101,2]
[358105156,1744722075473,162.81,0.00016779,2]
[358105157,1744722080369,65209.0,0.00027,30]
[358105158,1744722099485,324.46376777,0.00027,120]
[358105159,1744722187484,255.31,0.00016804,2]
[358105161,1744722240306,1582.3,0.00014886,2]
[358105162,1744722240588,1582.3,0.0001715,2]
[358105163,1744722240731,5505.37,0.00016804,2]
[358105164,1744722246436,200.0,0.00016804,2]
[358105165,1744722253148,397.88,0.00017486,2]
[358105166,1744722289337,311.81,0.00016804,2]
[358105167,1744722371660,191.03,0.00017301,2]
[358105168,1744722379769,231.32,0.000269,31]
[358105169,1744722379835,231.32,0.000269,31]
[358105170,1744722379893,231.32,0.000269,31]
[358105171,1744722379953,231.32,0.000269,31]
[358105172,1744722380009,231.32,0.000269,31]
[358105173,1744722380082,231.32,0.000269,31]
[358105174,1744722380240,231.32,0.000269,31]
[358105175,1744722380280,231.32,0.000269,31]
[358105176,1744722380321,231.32,0.000269,31]
[358105177,1744722380362,231.32,0.000269,31]
[358105178,1744722380403,231.32,0.000269,31]
[358105179,1744722380453,231.32,0.000269,31]
[358105180,1744722380507,231.32,0.000269,31]
[358105181,1744722380561,231.32,0.000269,31]
[358105182,1744722380618,231.32,0.000269,31]
[358105183,1744722380675,231.32,0.000269,31]
[358105184,1744722396987,156.37,0.00013699,2]
[358105185,1744722397322,156.37,0.00013699,2]
[358105186,1744722399215,156.37,0.00013699,2]
[358105187,1744722400095,156.37,0.00013699,2]
[358105188,1744722400853,156.37,0.00013699,2]
[358105189,1744722401239,156.37,0.00013699,2]
[358105190,1744722401608,156.37,0.00013699,2]
[358105191,1744722402460,156.37,0.00013699,2]
[358105192,1744722402843,156.37,0.00013699,2]
[358105193,1744722403403,156.37,0.00013699,2]
[358105194,1744722403849,156.37,0.00013699,2]
[358105195,1744722404269,156.37,0.00013699,2]
[358105196,1744722404686,156.37,0.00013699,2]
[358105197,1744722405056,156.37,0.00013699,2]
[358105199,1744722405435,156.37,0.00013699,2]
[358105200,1744722405836,156.37,0.00013699,2]
[358105201,1744722406192,156.43184213,0.00013699,2]
[358105202,1744722561491,166.29,0.00017486,2]
[358105203,1744722564127,764.76,0.00016799,2]
[358105204,1744722596368,250.0,0.00016805,2]
[358105205,1744722601470,250.0,0.00016805,2]
[358105206,1744722626808,167.06,0.00016801,2]
[358105209,1744722632151,-300.0,0.00017504,2]
[358105210,1744722632163,-250.0,0.00017504,2]
[358105211,1744722632175,-1027.2,0.00017505,2]
[358105212,1744722632187,-500.0,0.00017505,2]
[358105213,1744722632200,-500.0,0.00017505,2]
[358105214,1744722632211,-500.0,0.00017505,2]
[358105215,1744722632222,-956.73065,0.00017509,2]
[358105216,1744722632235,-70.46935,0.00017509,2]
[358105217,1744722632245,-1027.2,0.00017514,2]
[358105218,1744722632255,-1027.2,0.00017518,2]
[358105219,1744722632267,-125.82569549,0.00017523,2]
[358105220,1744722632280,-450.0,0.00017523,2]
[358105221,1744722632296,-451.37430451,0.00017523,2]
[358105222,1744722632313,-71.3188322,0.00017528,2]
[358105223,1744722632332,-955.8811678,0.00017528,2]
[358105224,1744722632343,-1027.2,0.00017532,2]
[358105225,1744722632354,-1027.2,0.00017537,2]
[358105226,1744722632365,-1027.2,0.00017541,2]
[358105227,1744722632376,-1027.2,0.00017546,2]
[358105228,1744722632387,-1027.2,0.00017551,2]
[358105229,1744722632397,-1027.2,0.00017555,2]
[358105230,1744722632408,-1027.2,0.0001756,2]
[358105231,1744722632420,-1027.2,0.00017565,2]
[358105232,1744722632432,-546.09878424,0.00017569,2]
[358105253,1744722638134,-481.10121576,0.00017569,2]
[358105255,1744722638145,-1027.2,0.00017574,2]
[358105257,1744722638156,-1000.0,0.000177,2]
[358105259,1744722638168,-156.7467538,0.0001782,2]
[358105261,1744722638178,-300.0,0.00017899,2]
[358105263,1744722638189,-652.3264,0.000179,2]
[358105264,1744722638200,-933.902,0.000179,2]
[358105265,1744722638211,-855.83169892,0.000179,2]
[358105266,1744722638221,-164.26111006,0.000179,2]
[358105267,1744722638232,-3259.4730452,0.000179,2]
[358105268,1744722638301,-277.595,0.000179,2]
[358105269,1744722638361,-731.07333968,0.000179,2]
[358105270,1744722638372,-15326.24002492,0.000179,2]
[358105271,1744722638383,-1732.52792225,0.000179,2]
[358105272,1744722638394,-1291.50475579,0.00017948,2]
[358105273,1744722638405,-698.0,0.00017949,2]
[358105274,1744722638417,-152.0,0.00017949,2]
[358105275,1744722638431,-692.0,0.00017973,2]
[358105276,1744722638442,-4151.65586445,0.00017973,2]
[358105277,1744722638455,-431.31999784,0.00017973,2]
[358105278,1744722638474,-475.02413771,0.00017973,2]
[358105279,1744722638485,-161.77303684,0.00017973,2]
[358105280,1744722638496,-500.0,0.00017973,2]
[358105281,1744722638506,-500.0,0.00017973,2]
[358105282,1744722638516,-301.64424214,0.00017973,2]
[358105283,1744722638527,-500.0,0.00017973,2]
[358105284,1744722638538,-502.72153642,0.00017973,2]
[358105285,1744722638547,-403.44864785,0.00017973,2]
[358105286,1744722638556,-161.04467997,0.00017973,2]
[358105287,1744722638566,-500.0,0.00017973,2]
[358105288,1744722638575,-507.98354872,0.00017973,2]
[358105289,1744722638584,-668.65185757,0.00017989,2]
[358105290,1744722638594,-207.4,0.00017989,2]
[358105293,1744722638860,-179.93,0.0001799,2]
[358105294,1744722638880,-344.48874434,0.0001799,2]
[358105295,1744722638890,-344.48874434,0.0001799,2]
[358105296,1744722638900,-179.93,0.0001799,2]
[358105297,1744722638909,-344.48874434,0.0001799,2]
[358105298,1744722638919,-179.93,0.0001799,2]
[358105299,1744722638928,-500.0,0.00017998,2]
[358105300,1744722638939,-500.0,0.00017998,2]
[358105301,1744722638948,-500.0,0.00017998,2]
[358105302,1744722638956,-500.0,0.00017998,2]
[358105303,1744722638966,-500.0,0.00017998,2]
[358105304,1744722638975,-500.0,0.00017998,2]
[358105305,1744722638984,-500.0,0.00017998,2]
[358105306,1744722638993,-500.0,0.00017998,2]
[358105307,1744722639003,-500.0,0.00017998,2]
[358105308,1744722639012,-500.0,0.00017998,2]
[358105309,1744722639023,-500.0,0.00017998,2]
[358105310,1744722639033,-500.0,0.00017998,2]
[358105311,1744722639042,-500.0,0.00017998,2]
[358105312,1744722639050,-213.89587466,0.00017998,2]
[358105313,1744722639060,-500.0,0.00017998,2]
[358105314,1744722639069,-500.0,0.00017998,2]
[358105315,1744722639079,-500.0,0.00017998,2]
[358105316,1744722639088,-500.0,0.00017998,2]
[358105317,1744722639097,-500.0,0.00017998,2]
[358105318,1744722639107,-524.63404989,0.00017998,2]
[358105319,1744722639116,-500.0,0.00017998,2]
[358105320,1744722639125,-500.0,0.00017998,2]
[358105321,1744722639135,-500.0,0.00017998,2]
[358105322,1744722639144,-500.0,0.00017998,2]
[358105323,1744722639153,-500.0,0.00017998,2]
[358105324,1744722639163,-500.0,0.00017998,2]
[358105325,1744722639174,-500.0,0.00017999,2]
[358105326,1744722639184,-500.0,0.00017999,2]
[358105327,1744722639193,-500.0,0.00017999,2]
[358105328,1744722639202,-500.0,0.00017999,2]
[358105329,1744722639213,-527.84307565,0.00017999,2]
[358105330,1744722639222,-500.0,0.00017999,2]
[358105331,1744722639231,-525.99799707,0.00017999,2]
[358105332,1744722639241,-500.0,0.00017999,2]
[358105333,1744722639249,-500.0,0.00017999,2]
[358105334,1744722639259,-514.68407597,0.00017999,2]
[358105335,1744722639269,-500.0,0.00017999,2]
[358105336,1744722639279,-332.49907933,0.00017999,2]
[358105337,1744722639288,-500.0,0.00017999,2]
[358105338,1744722639297,-553.05804531,0.00017999,2]
[358105339,1744722639307,-500.0,0.00017999,2]
[358105340,1744722639316,-500.0,0.00017999,2]
[358105341,1744722639325,-500.0,0.00017999,2]
[358105342,1744722639335,-500.0,0.00017999,2]
[358105343,1744722639344,-358.6435958,0.00017999,2]
[358105344,1744722639354,-500.0,0.00017999,2]
[358105345,1744722639363,-500.0,0.00017999,2]
[358105346,1744722639372,-500.0,0.00017999,2]
[358105347,1744722639381,-243.45,0.00017999,2]
[358105348,1744722639390,-2069.0,0.00017999,2]
[358105349,1744722639399,-500.0,0.00017999,2]
[358105350,1744722639408,-1404.0,0.00017999,2]
[358105351,1744722639418,-500.0,0.00017999,2]
[358105352,1744722639432,-500.0,0.00017999,2]
[358105353,1744722639441,-500.0,0.00017999,2]
[358105354,1744722639450,-179.83548135,0.00017999,2]
[358105355,1744722639460,-500.0,0.00017999,2]
[358105356,1744722639469,-500.0,0.00017999,2]
[358105357,1744722639481,-489.39448947,0.00017999,2]
[358105358,1744722639490,-513.07947964,0.00017999,2]
[358105359,1744722639499,-500.0,0.00017999,2]
[358105360,1744722639509,-150.0,0.00017999,2]
[358105361,1744722639519,-500.0,0.00017999,2]
[358105362,1744722639529,-500.0,0.00017999,2]
[358105363,1744722639539,-211.53,0.00017999,2]
[358105364,1744722639548,-150.0,0.00017999,2]
[358105365,1744722639558,-500.0,0.00017999,2]
[358105366,1744722639567,-150.0,0.00017999,2]
[358105367,1744722639576,-150.0,0.00017999,2]
[358105368,1744722639586,-500.0,0.00017999,2]
[358105369,1744722639595,-500.0,0.00017999,2]
[358105370,1744722639604,-500.0,0.00017999,2]
[358105371,1744722639614,-500.0,0.00017999,2]
[358105372,1744722639625,-500.0,0.00017999,2]
[358105373,1744722639635,-156.34320295,0.00017999,2]
[358105374,1744722639645,-500.0,0.00017999,2]
[358105375,1744722639655,-592.15,0.00017999,2]
[358105376,1744722639664,-592.15,0.00017999,2]
[358105377,1744722639675,-592.15,0.00017999,2]
[358105378,1744722639686,-592.15,0.00017999,2]
[358105379,1744722639695,-592.15,0.00017999,2]
[358105380,1744722639705,-592.15,0.00017999,2]
[358105381,1744722639715,-592.15,0.00017999,2]
[358105382,1744722639725,-592.15,0.00017999,2]
[358105383,1744722639735,-592.15,0.00017999,2]
[358105384,1744722639745,-592.15,0.00017999,2]
[358105385,1744722639754,-592.15,0.00017999,2]
[358105386,1744722639764,-592.15,0.00017999,2]
[358105387,1744722639774,-592.15,0.00017999,2]
[358105388,1744722639783,-592.15,0.00017999,2]
[358105389,1744722639794,-592.15,0.00017999,2]
[358105390,1744722639804,-592.15,0.00017999,2]
[358105391,1744722639813,-592.15,0.00017999,2]
[358105392,1744722639822,-592.15,0.00017999,2]
[358105393,1744722639832,-592.15,0.00017999,2]
[358105394,1744722639841,-592.15,0.00017999,2]
[358105395,1744722639850,-592.15,0.00017999,2]
[358105396,1744722639859,-592.15,0.00017999,2]
[358105397,1744722639869,-592.15,0.00017999,2]
[358105398,1744722639879,-592.36,0.00017999,2]
[358105399,1744722639889,-500.0,0.00017999,2]
[358105400,1744722639899,-500.0,0.00017999,2]
[358105401,1744722639908,-500.0,0.00017999,2]
[358105402,1744722639919,-256.71,0.00017999,2]
[358105403,1744722639928,-500.0,0.00017999,2]
[358105404,1744722639938,-500.0,0.00017999,2]
[358105405,1744722639948,-507.2,0.00017999,2]
[358105406,1744722639958,-626.18646801,0.00017999,2]
[358105407,1744722639967,-500.0,0.00017999,2]
[358105408,1744722639978,-500.0,0.00017999,2]
[358105409,1744722639988,-500.0,0.00017999,2]
[358105410,1744722639997,-500.0,0.00017999,2]
[358105411,1744722640007,-500.0,0.00017999,2]
[358105412,1744722640017,-500.0,0.00017999,2]
[358105413,1744722640026,-500.0,0.00017999,2]
[358105414,1744722640035,-523.57679509,0.00017999,2]
[358105415,1744722640044,-500.0,0.00017999,2]
[358105416,1744722640054,-150.0,0.00017999,2]
[358105417,1744722640063,-500.0,0.00017999,2]
[358105418,1744722640072,-500.0,0.00017999,2]
[358105419,1744722640081,-500.0,0.00017999,2]
[358105420,1744722640091,-381.14,0.00017999,2]
[358105421,1744722640100,-500.0,0.00017999,2]
[358105422,1744722640109,-500.0,0.00017999,2]
[358105423,1744722640119,-500.0,0.00017999,2]
[358105424,1744722640128,-386.06,0.00017999,2]
[358105425,1744722640137,-500.0,0.00017999,2]
[358105426,1744722640146,-500.0,0.00017999,2]
[358105427,1744722640156,-647.14,0.00017999,2]
[358105428,1744722640165,-200.0,0.00017999,2]
[358105429,1744722640175,-500.0,0.00017999,2]
[358105430,1744722640185,-500.0,0.00017999,2]
[358105431,1744722640195,-500.0,0.00017999,2]
[358105432,1744722640204,-155.1566903,0.00017999,2]
[358105433,1744722640214,-500.0,0.00017999,2]
[358105434,1744722640223,-500.0,0.00017999,2]
[358105435,1744722640232,-150.0,0.00017999,2]
[358105436,1744722640241,-187.75974797,0.00017999,2]
[358105437,1744722640250,-500.0,0.00017999,2]
[358105438,1744722640259,-178.64796765,0.00017999,2]
[358105439,1744722640270,-500.0,0.00017999,2]
[358105440,1744722640279,-500.0,0.00017999,2]
[358105441,1744722640289,-500.0,0.00017999,2]
[358105442,1744722640298,-500.0,0.00017999,2]
[358105443,1744722640307,-500.0,0.00017999,2]
[358105444,1744722640316,-500.0,0.00017999,2]
[358105445,1744722640326,-524.39,0.00017999,2]
[358105446,1744722640335,-500.18897332,0.00017999,2]
[358105447,1744722640344,-500.0,0.00017999,2]
[358105448,1744722640354,-500.0,0.00017999,2]
[358105449,1744722640363,-500.0,0.00017999,2]
[358105450,1744722640372,-500.0,0.00017999,2]
[358105451,1744722640382,-500.0,0.00017999,2]
[358105452,1744722640391,-500.0,0.00017999,2]
[358105453,1744722640401,-500.0,0.00017999,2]
[358105454,1744722640411,-500.0,0.00017999,2]
[358105455,1744722640423,-500.0,0.00017999,2]
[358105456,1744722640432,-500.0,0.00017999,2]
[358105457,1744722640441,-500.0,0.00017999,2]
[358105458,1744722640450,-500.0,0.00017999,2]
[358105459,1744722640461,-500.0,0.00017999,2]
[358105460,1744722640470,-500.0,0.00017999,2]
[358105461,1744722640479,-500.0,0.00017999,2]
[358105462,1744722640490,-312.94,0.00017999,2]
[358105463,1744722640500,-500.0,0.00017999,2]
[358105464,1744722640510,-549.05,0.00017999,2]
[358105465,1744722640519,-500.0,0.00017999,2]
[358105466,1744722640528,-282.78264585,0.00017999,2]
[358105467,1744722640538,-568.56,0.00017999,2]
[358105468,1744722640547,-500.0,0.00017999,2]
[358105469,1744722640556,-150.0,0.00017999,2]
[358105470,1744722640567,-150.0,0.00017999,2]
[358105471,1744722640578,-150.0,0.00017999,2]
[358105472,1744722640588,-150.0,0.00017999,2]
[358105473,1744722640599,-150.0,0.00017999,2]
[358105474,1744722640609,-150.0,0.00017999,2]
[358105475,1744722640619,-150.0,0.00017999,2]
[358105476,1744722640628,-150.0,0.00017999,2]
[358105477,1744722640638,-150.0,0.00017999,2]
[358105478,1744722640647,-500.0,0.00017999,2]
[358105479,1744722640656,-500.0,0.00017999,2]
[358105480,1744722640665,-193.16,0.00017999,2]
[358105481,1744722640675,-500.0,0.00017999,2]
[358105482,1744722640684,-500.0,0.00017999,2]
[358105483,1744722640693,-500.0,0.00017999,2]
[358105484,1744722640703,-463.03567596,0.00017999,2]
[358105485,1744722640712,-1238.0,0.00018,2]
[358105486,1744722640722,-150.0,0.00018,2]
[358105487,1744722640732,-126820.2728118,0.00018,2]
[358105488,1744722640749,-584.78514729,0.00018,2]
[358105490,1744722640839,-4225.61074269,0.00018,2]
[358105491,1744722640853,-10184.64482401,0.00018,2]
[358105492,1744722640865,-1500.0,0.00018,2]
[358105493,1744722640877,-1729.85740307,0.00018,2]
[358105494,1744722640888,-1217.4,0.00018,2]
[358105495,1744722640899,-636.50612495,0.00018,2]
[358105506,1744722643096,-255.63726377,0.00018,2]
[358105511,1744722643153,-21457.5,0.00018,2]
[358105512,1744722643166,-344.10978337,0.00018,2]
[358105676,1744722645105,-5787.98742148,0.00018,2]
[358105678,1744722645117,-122595.62134929,0.00018,2]
[358105680,1744722645127,-151.0,0.00018,2]
[358105682,1744722645136,-151.0,0.00018,2]
[358105684,1744722645146,-151.0,0.00018,2]
[358105686,1744722645156,-151.0,0.00018,2]
[358105688,1744722645166,-151.0,0.00018,2]
[358105690,1744722645175,-151.0,0.00018,2]
[358105692,1744722645185,-253.879227,0.00018,2]
[358105694,1744722645195,-563184.95275026,0.00018,2]
[358105696,1744722645204,-29070.42639311,0.00018,2]
[358105698,1744722645216,-1136.29584182,0.00018,2]
[358105797,1744722646200,-5226.96990874,0.00018,2]
[358105809,1744722646312,-814.39739495,0.00018,2]
[358105816,1744722646372,-3517.19999,0.00018,2]
[358105827,1744722646486,-581.03736795,0.00018,2]
[358106381,1744722736204,200.0,0.00015855,2]
[358106382,1744722749246,946.15,0.0001749,2]
[358106383,1744722833590,1800.0,0.00023,24]
[358106384,1744722883233,3600.0,0.00027,30]
[358106385,1744722889628,213.18,0.00017354,2]
[358106386,1744722889836,213.18,0.00017359,2]
[358106387,1744722890059,213.18,0.00017363,2]
[358106388,1744722890275,213.18,0.00017368,2]
[358106389,1744722890507,213.18,0.00017373,2]
[358106390,1744722890712,213.18,0.00017377,2]
[358106391,1744722890933,213.18,0.00017382,2]
[358106392,1744722891162,213.18,0.00017386,2]
[358106393,1744722891601,213.18,0.00017391,2]
[358106394,1744722891849,213.18,0.00017395,2]
[358106395,1744722892101,213.18,0.000174,2]
[358106396,1744722892313,213.18,0.00017405,2]
[358106397,1744722892570,213.18,0.00017409,2]
[358106398,1744722892801,213.18,0.00017414,2]
[358106399,1744722893296,213.18,0.00017418,2]
[358106400,1744722893338,213.18,0.00017423,2]
[358106401,1744722893489,213.18,0.00017427,2]
[358106402,1744722893731,213.18,0.00017432,2]
[358106403,1744722894009,213.18,0.00017437,2]
[358106404,1744722894241,213.18,0.00017441,2]
[358106405,1744722992132,194.33,0.000269,31]
[358106406,1744722992176,194.33,0.000269,31]
[358106407,1744722992221,194.33,0.000269,31]
[358106408,1744722992265,194.33,0.000269,31]
[358106409,1744722992312,194.33,0.000269,31]
[358106410,1744722992355,194.33,0.000269,31]
[358106411,1744722992395,194.33,0.000269,31]
[358106412,1744722992437,194.33,0.000269,31]
[358106413,1744722992480,194.33,0.000269,31]
[358106414,1744722992534,194.33,0.000269,31]
[358106415,1744722992577,194.33,0.000269,31]
[358106416,1744722992619,194.33,0.000269,31]
[358106417,1744722992662,194.33,0.000269,31]
[358106418,1744722992713,194.33,0.000269,31]
[358106419,1744722992785,194.33,0.000269,31]
[358106420,1744722992843,194.33,0.000269,31]
[358106422,1744723095087,1077.43,0.00017192,2]
[358106423,1744723110190,773.784,0.00017444,2]
[358106424,1744723143528,1151.94,0.00017146,2]
[358106425,1744723185586,162.81,0.00013668,2]
[358106426,1744723245032,200.0,0.00017114,2]
[358106428,1744723358513,1459.52,0.00015083,2]
[358106429,1744723358747,1459.52,0.00017347,2]
[358106430,1744723376588,200.0,0.0001726,2]
[358106431,1744723424156,351.89,0.00016963,2]
[358106432,1744723442287,500.0,0.00017114,2]
[358106433,1744723456451,1403.37,0.00016987,2]
[358106436,1744723520473,159.06759882,9e-05,2]
[358106437,1744723528348,327.85420184,0.00011,2]
[358106438,1744723536961,3647.95376314,9e-05,2]
[358106439,1744723555579,801.98879225,6.94e-05,2]
[358106440,1744723567632,1771.5232329,8e-05,2]
[358106443,1744723589371,1973.00217155,0.00015,2]
[358106444,1744723604258,161.31,0.000269,31]
[358106445,1744723604309,161.31,0.000269,31]
[358106446,1744723604368,161.31,0.000269,31]
[358106447,1744723604436,161.31,0.000269,31]
[358106448,1744723604489,161.31,0.000269,31]
[358106449,1744723604548,161.31,0.000269,31]
[358106450,1744723604613,161.31,0.000269,31]
[358106451,1744723604928,161.31,0.000269,31]
[358106452,1744723605170,161.31,0.000269,31]
[358106453,1744723605216,161.31,0.000269,31]
[358106454,1744723605266,161.31,0.000269,31]
[358106455,1744723605311,161.31,0.000269,31]
[358106456,1744723605363,161.31,0.000269,31]
[358106457,1744723605419,161.31,0.000269,31]
[358106458,1744723605465,161.31,0.000269,31]
[358106459,1744723605514,161.31,0.000269,31]
[358106461,1744723620760,250.0,0.00016987,2]
[358106462,1744723629772,250.0,0.00016987,2]
[358106463,1744723630334,1790.57478572,0.00015,2]
[358106464,1744723633959,10046.07624638,0.00015,2]
[358106465,1744723641107,250.6108502,0.000101,2]
[358106466,1744723644827,13002.90882918,0.00017088,2]
[358106467,1744723647852,480.17638083,0.0001,2]
[358106470,1744723676499,14247.09989656,0.0001,2]
[358106471,1744723696837,200.0,0.0001634,2]
[358106472,1744723698569,194.65874869,0.000135,2]
[358106474,1744723708282,377.77331753,7.888e-05,2]
[358106475,1744723721862,258.76199984,0.000107,2]
[358106477,1744723727955,152.72521539,0.00017164,2]
[358106488,1744723832217,-250.0,0.00017584,2]
[358106489,1744723832227,-333.73271874,0.000176,2]
[358106490,1744723832236,-300.0,0.00017699,2]
[358106491,1744723832245,-2605.2857,0.000177,2]
[358106492,1744723832255,-28843.6757594,0.000177,2]
[358106493,1744723832274,-1410.54215506,0.000177,2]
[358106494,1744723832285,-961.6659204,0.000177,2]
[358106495,1744723832339,-6857.98028969,0.000177,2]
[358106496,1744723832351,-2870.44053836,0.000177,2]
[358106497,1744723832399,-423.30030765,0.000177,2]